[Event "*** Titled Tuesday Blitz"]
[Site "Chess.com"]
[Date "2020.05.19"]
[Round "2"]
[White "VojtechPlat"]
[Black "vinniethepooh"]
[Result "1-0"]
[WhiteElo "2890"]
[BlackElo "2551"]
[TimeControl "180+1"]
[EndTime "12:20:44 PDT"]
[Termination "VojtechPlat won by resignation"]

1. e4 {[%clk 0:03:00.9]} 1... c5 {[%clk 0:02:59.6]} 2. Nf3 {[%clk 0:03:00.6]}
2... d6 {[%clk 0:02:59.7]} 3. c3 {[%clk 0:03:01]} 3... Nf6 {[%clk 0:02:59.8]} 4.
Bc4 {[%clk 0:03:01]} 4... g6 {[%clk 0:02:55.7]} 5. Qe2 {[%clk 0:03:00.8]} 5...
Bg7 {[%clk 0:02:54]} 6. O-O {[%clk 0:03:00.2]} 6... O-O {[%clk 0:02:53.7]} 7. h3
{[%clk 0:03:00.5]} 7... e6 {[%clk 0:02:51.3]} 8. d3 {[%clk 0:03:00.6]} 8... b6
{[%clk 0:02:48]} 9. a4 {[%clk 0:02:59.6]} 9... a6 {[%clk 0:02:45.6]} 10. Bg5
{[%clk 0:02:58.9]} 10... h6 {[%clk 0:02:42.6]} 11. Bxf6 {[%clk 0:02:57.4]} 11...
Qxf6 {[%clk 0:02:40]} 12. Nbd2 {[%clk 0:02:55.2]} 12... Bb7 {[%clk 0:02:39.8]}
13. Rfe1 {[%clk 0:02:54]} 13... Nd7 {[%clk 0:02:39.7]} 14. Bb3 {[%clk
0:02:52.9]} 14... Rfe8 {[%clk 0:02:38.2]} 15. Nc4 {[%clk 0:02:51.4]} 15... Qe7
{[%clk 0:02:36.3]} 16. Rad1 {[%clk 0:02:45.2]} 16... Rac8 {[%clk 0:02:09.3]} 17.
Ne3 {[%clk 0:02:37.2]} 17... Ne5 {[%clk 0:01:54.2]} 18. Nd2 {[%clk 0:02:34.6]}
18... Nc6 {[%clk 0:01:52.4]} 19. f4 {[%clk 0:02:31.8]} 19... b5 {[%clk
0:01:44.8]} 20. f5 {[%clk 0:02:16.2]} 20... b4 {[%clk 0:01:22.1]} 21. fxe6
{[%clk 0:02:11.8]} 21... fxe6 {[%clk 0:01:15.9]} 22. Rc1 {[%clk 0:02:03.6]}
22... Kh7 {[%clk 0:01:14.4]} 23. Nf3 {[%clk 0:01:57.4]} 23... Na5 {[%clk
0:00:53.5]} 24. Ba2 {[%clk 0:01:56.4]} 24... b3 {[%clk 0:00:43.9]} 25. Bb1
{[%clk 0:01:56.3]} 25... Bc6 {[%clk 0:00:43.7]} 26. d4 {[%clk 0:01:54.7]} 26...
Bxa4 {[%clk 0:00:41.1]} 27. Qxa6 {[%clk 0:01:51.9]} 27... Qb7 {[%clk 0:00:30.1]}
28. Qe2 {[%clk 0:01:48.6]} 28... cxd4 {[%clk 0:00:24]} 29. Nxd4 {[%clk
0:01:40.6]} 29... e5 {[%clk 0:00:14.2]} 30. Nf3 {[%clk 0:01:33.3]} 30... Bc6
{[%clk 0:00:14.6]} 31. Nd5 {[%clk 0:01:27.4]} 31... Rf8 {[%clk 0:00:07.8]} 32.
Rcd1 {[%clk 0:01:26.5]} 32... Rf7 {[%clk 0:00:07.3]} 33. Rf1 {[%clk 0:01:16.4]}
33... Rcf8 {[%clk 0:00:07.4]} 34. Nh2 {[%clk 0:01:15.2]} 34... Bb5 {[%clk
0:00:06.3]} 35. Bd3 {[%clk 0:01:06]} 35... Qa7+ {[%clk 0:00:06.4]} 36. Kh1
{[%clk 0:01:05]} 36... Bc6 {[%clk 0:00:04.9]} 37. Rxf7 {[%clk 0:01:00]} 37...
Qxf7 {[%clk 0:00:05.8]} 38. Rf1 {[%clk 0:00:56.2]} 38... Qb7 {[%clk 0:00:05.1]}
39. Rxf8 {[%clk 0:00:51.4]} 39... Bxf8 {[%clk 0:00:06]} 40. Ng4 {[%clk
0:00:51.4]} 40... Bg7 {[%clk 0:00:05.4]} 41. Qf3 {[%clk 0:00:50]} 41... Bxd5
{[%clk 0:00:04.9]} 42. exd5 {[%clk 0:00:49.7]} 42... Qe7 {[%clk 0:00:02.9]} 43.
Nf2 {[%clk 0:00:44.1]} 43... Nb7 {[%clk 0:00:02.8]} 44. Ne4 {[%clk 0:00:37.3]}
44... Nc5 {[%clk 0:00:01.8]} 45. Nxc5 {[%clk 0:00:37.2]} 45... dxc5 {[%clk
0:00:02.7]} 46. Qg4 {[%clk 0:00:33.9]} 46... Qd6 {[%clk 0:00:02.7]} 47. h4
{[%clk 0:00:33]} 47... Bf8 {[%clk 0:00:02.2]} 48. h5 {[%clk 0:00:32.7]} 48...
Be7 {[%clk 0:00:01.8]} 49. Bxg6+ {[%clk 0:00:31.5]} 49... Kh8 {[%clk 0:00:02.3]}
50. Be4 {[%clk 0:00:25.3]} 50... Qf6 {[%clk 0:00:02.2]} 51. g3 {[%clk
0:00:23.6]} 51... Qf1+ {[%clk 0:00:02]} 52. Kh2 {[%clk 0:00:22.7]} 52... Qf2+
{[%clk 0:00:02.5]} 53. Kh3 {[%clk 0:00:22.7]} 53... Qf1+ {[%clk 0:00:02.5]} 54.
Bg2 {[%clk 0:00:22.8]} 54... Qf6 {[%clk 0:00:03]} 55. Qd7 {[%clk 0:00:21.4]}
55... Qd6 {[%clk 0:00:02.3]} 56. Qe8+ {[%clk 0:00:21.4]} 56... Kg7 {[%clk
0:00:02.8]} 57. Be4 {[%clk 0:00:21.4]} 57... Qf6 {[%clk 0:00:03.2]} 58. Bg6
{[%clk 0:00:19.3]} 58... Bd6 {[%clk 0:00:02.9]} 59. Qd7+ {[%clk 0:00:18.9]}
59... Qe7 {[%clk 0:00:03]} 60. Qf5 {[%clk 0:00:18.6]} 60... Qf6 {[%clk
0:00:03.2]} 61. Qd3 {[%clk 0:00:18.8]} 61... Qf2 {[%clk 0:00:02.4]} 62. Be4
{[%clk 0:00:18]} 62... Qf6 {[%clk 0:00:02.1]} 63. Qf3 {[%clk 0:00:17.9]} 63...
Qxf3 {[%clk 0:00:02.2]} 64. Bxf3 {[%clk 0:00:18]} 64... Kf6 {[%clk 0:00:03.1]}
65. Be4 {[%clk 0:00:18.2]} 65... c4 {[%clk 0:00:02.1]} 66. Bf3 {[%clk 0:00:18]}
66... Bc5 {[%clk 0:00:02.1]} 67. Be2 {[%clk 0:00:18.2]} 67... Be3 {[%clk
0:00:02]} 68. Bxc4 {[%clk 0:00:18.2]} 68... Bc1 {[%clk 0:00:02.9]} 69. Bxb3
{[%clk 0:00:18.5]} 69... Bxb2 {[%clk 0:00:03.8]} 70. c4 {[%clk 0:00:19]} 70...
Bd4 {[%clk 0:00:04.2]} 71. Kg2 {[%clk 0:00:19.2]} 71... e4 {[%clk 0:00:04.3]}
72. Bd1 {[%clk 0:00:19.1]} 72... Ke5 {[%clk 0:00:04.3]} 73. Kf1 {[%clk
0:00:19.4]} 73... Bc5 {[%clk 0:00:04.6]} 74. Ke2 {[%clk 0:00:19.5]} 74... Kd4
{[%clk 0:00:05]} 75. Bb3 {[%clk 0:00:19.7]} 75... Bd6 {[%clk 0:00:05.5]} 76. g4
{[%clk 0:00:18.5]} 76... Be7 {[%clk 0:00:06]} 77. Ba2 {[%clk 0:00:18.5]} 77...
Bd6 {[%clk 0:00:04.7]} 78. Bb1 {[%clk 0:00:18.5]} 78... Be7 {[%clk 0:00:04]} 79.
Bc2 {[%clk 0:00:18.7]} 79... Bd6 {[%clk 0:00:04.2]} 80. g5 {[%clk 0:00:19.1]}
80... hxg5 {[%clk 0:00:05.1]} 81. h6 {[%clk 0:00:19.2]} 81... Kc5 {[%clk
0:00:04.5]} 82. h7 {[%clk 0:00:19.4]} 82... Be5 {[%clk 0:00:04.4]} 83. Bxe4
{[%clk 0:00:19.8]} 83... g4 {[%clk 0:00:03.1]} 84. Kf2 {[%clk 0:00:19.7]} 84...
g3+ {[%clk 0:00:03.3]} 85. Kg2 {[%clk 0:00:20]} 85... Kd6 {[%clk 0:00:03.7]} 86.
Kh3 {[%clk 0:00:20.2]} 86... Kc5 {[%clk 0:00:04]} 87. Kg4 {[%clk 0:00:20.5]}
87... Kd6 {[%clk 0:00:04.2]} 88. Kf5 {[%clk 0:00:20.6]} 88... Bd4 {[%clk
0:00:04.5]} 89. Kg6 {[%clk 0:00:20.4]} 89... Kc5 {[%clk 0:00:04.5]} 90. Kf7
{[%clk 0:00:20.1]} 90... Kxc4 {[%clk 0:00:02]} 91. d6 {[%clk 0:00:20.4]} 1-0

[Event "*** Titled Tuesday Blitz"]
[Site "Chess.com"]
[Date "2020.05.19"]
[Round "3"]
[White "wanyaland"]
[Black "robertofabregas"]
[Result "1-0"]
[WhiteElo "2333"]
[BlackElo "2120"]
[TimeControl "180+1"]
[EndTime "12:23:27 PDT"]
[Termination "wanyaland won by resignation"]

1. d4 {[%clk 0:03:00.1]} 1... Nf6 {[%clk 0:02:55.3]} 2. c4 {[%clk 0:02:59.1]}
2... e6 {[%clk 0:02:55.4]} 3. Nc3 {[%clk 0:02:59.2]} 3... Bb4 {[%clk 0:02:54.8]}
4. Qc2 {[%clk 0:02:59.6]} 4... c5 {[%clk 0:02:52]} 5. dxc5 {[%clk 0:02:58.7]}
5... Na6 {[%clk 0:02:48.6]} 6. g3 {[%clk 0:02:56.2]} 6... Nxc5 {[%clk
0:02:37.2]} 7. Bg2 {[%clk 0:02:56.1]} 7... Rb8 {[%clk 0:02:23.9]} 8. Nf3 {[%clk
0:02:54.9]} 8... b6 {[%clk 0:02:22.6]} 9. Bf4 {[%clk 0:02:48.3]} 9... d6 {[%clk
0:02:19]} 10. Rd1 {[%clk 0:02:47.4]} 10... Nce4 {[%clk 0:02:08]} 11. Qa4+ {[%clk
0:02:46.2]} 11... Bd7 {[%clk 0:01:59.2]} 12. Qxb4 {[%clk 0:02:44.5]} 1-0

[Event "*** Titled Tuesday Blitz"]
[Site "Chess.com"]
[Date "2020.05.19"]
[Round "3"]
[White "SantoBlue"]
[Black "valeriocarnicelli"]
[Result "0-1"]
[WhiteElo "2776"]
[BlackElo "2556"]
[TimeControl "180+1"]
[EndTime "12:23:42 PDT"]
[Termination "valeriocarnicelli won by checkmate"]

1. e4 {[%clk 0:02:59.6]} 1... e5 {[%clk 0:02:58.7]} 2. Nf3 {[%clk 0:02:59]} 2...
Nc6 {[%clk 0:02:58.7]} 3. Bc4 {[%clk 0:02:59]} 3... Bc5 {[%clk 0:02:58.4]} 4. c3
{[%clk 0:02:59.3]} 4... Nf6 {[%clk 0:02:58.5]} 5. d4 {[%clk 0:02:59.2]} 5...
exd4 {[%clk 0:02:58.2]} 6. e5 {[%clk 0:02:59.3]} 6... d5 {[%clk 0:02:57.2]} 7.
Bb5 {[%clk 0:02:58]} 7... Ne4 {[%clk 0:02:57.2]} 8. cxd4 {[%clk 0:02:55.6]} 8...
Bb6 {[%clk 0:02:56.8]} 9. Nc3 {[%clk 0:02:54.8]} 9... O-O {[%clk 0:02:53.2]} 10.
Be3 {[%clk 0:02:54.7]} 10... Bg4 {[%clk 0:02:52.5]} 11. h3 {[%clk 0:02:54.7]}
11... Bxf3 {[%clk 0:02:48.2]} 12. gxf3 {[%clk 0:02:52.5]} 12... Ng5 {[%clk
0:02:47.6]} 13. f4 {[%clk 0:02:49.9]} 13... Ne6 {[%clk 0:02:21.8]} 14. Bxc6
{[%clk 0:02:46.9]} 14... bxc6 {[%clk 0:02:21.8]} 15. f5 {[%clk 0:02:47.1]} 15...
Nxd4 {[%clk 0:02:21.4]} 16. Bxd4 {[%clk 0:02:46]} 16... c5 {[%clk 0:02:21.8]}
17. Be3 {[%clk 0:02:37.5]} 17... d4 {[%clk 0:02:21.6]} 18. Qg4 {[%clk
0:02:29.3]} 18... dxe3 {[%clk 0:02:18.1]} 19. f6 {[%clk 0:02:28.9]} 19... Qd2+
{[%clk 0:02:16.9]} 20. Kf1 {[%clk 0:02:26.3]} 20... Qxf2# {[%clk 0:02:16.9]} 0-1

[Event "*** Titled Tuesday Blitz"]
[Site "Chess.com"]
[Date "2020.05.19"]
[Round "3"]
[White "poummba"]
[Black "AGW2016"]
[Result "1-0"]
[WhiteElo "2444"]
[BlackElo "2228"]
[TimeControl "180+1"]
[EndTime "12:23:49 PDT"]
[Termination "poummba won by resignation"]

1. e4 {[%clk 0:03:00.9]} 1... c5 {[%clk 0:02:57.7]} 2. Nf3 {[%clk 0:03:00.7]}
2... d6 {[%clk 0:02:57.5]} 3. Nc3 {[%clk 0:03:00.7]} 3... Nf6 {[%clk 0:02:55.7]}
4. e5 {[%clk 0:03:01.1]} 4... dxe5 {[%clk 0:02:55.4]} 5. Nxe5 {[%clk 0:03:02]}
5... Nbd7 {[%clk 0:02:55]} 6. d4 {[%clk 0:03:01.7]} 6... cxd4 {[%clk 0:02:51.4]}
7. Qxd4 {[%clk 0:03:01.6]} 7... Nxe5 {[%clk 0:02:52.1]} 8. Qxe5 {[%clk
0:03:00.4]} 8... e6 {[%clk 0:02:52.6]} 9. Bf4 {[%clk 0:03:00.3]} 9... Bd7 {[%clk
0:02:47]} 10. O-O-O {[%clk 0:02:56.1]} 10... Bb4 {[%clk 0:02:43.9]} 11. Ne4
{[%clk 0:02:32.9]} 11... Qe7 {[%clk 0:02:23.1]} 12. Bg5 {[%clk 0:02:26]} 12...
Rc8 {[%clk 0:02:00.3]} 13. Bxf6 {[%clk 0:02:20]} 13... gxf6 {[%clk 0:02:01.2]}
14. Nxf6+ {[%clk 0:02:20.1]} 1-0

[Event "*** Titled Tuesday Blitz"]
[Site "Chess.com"]
[Date "2020.05.19"]
[Round "3"]
[White "Aikiigm"]
[Black "MilanJeremic"]
[Result "1-0"]
[WhiteElo "2512"]
[BlackElo "2279"]
[TimeControl "180+1"]
[EndTime "12:23:51 PDT"]
[Termination "Aikiigm won by resignation"]

1. d4 {[%clk 0:03:00.9]} 1... d5 {[%clk 0:02:59.6]} 2. Nf3 {[%clk 0:03:01.8]}
2... Nf6 {[%clk 0:02:58.5]} 3. Bf4 {[%clk 0:03:02.2]} 3... e6 {[%clk 0:02:57.8]}
4. e3 {[%clk 0:03:02.5]} 4... Ne4 {[%clk 0:02:56.7]} 5. Nbd2 {[%clk 0:03:00.9]}
5... f5 {[%clk 0:02:56.1]} 6. Nxe4 {[%clk 0:03:00.8]} 6... fxe4 {[%clk
0:02:55.3]} 7. Ne5 {[%clk 0:03:01.7]} 7... g6 {[%clk 0:02:48.4]} 8. h4 {[%clk
0:03:01.5]} 8... Bg7 {[%clk 0:02:47.5]} 9. h5 {[%clk 0:03:01.7]} 9... g5 {[%clk
0:02:46.3]} 10. h6 {[%clk 0:03:02]} 10... Bxe5 {[%clk 0:02:41.5]} 11. Qh5+
{[%clk 0:02:58.4]} 11... Ke7 {[%clk 0:02:41.2]} 12. Bxe5 {[%clk 0:02:56.3]}
12... Rg8 {[%clk 0:02:39.4]} 13. Bg7 {[%clk 0:02:55.5]} 13... Kd7 {[%clk
0:02:38]} 14. Rh3 {[%clk 0:02:51.8]} 14... c5 {[%clk 0:02:32.4]} 15. Rg3 {[%clk
0:02:50.3]} 15... cxd4 {[%clk 0:02:31]} 16. exd4 {[%clk 0:02:46.8]} 16... Qa5+
{[%clk 0:02:15.9]} 17. c3 {[%clk 0:02:45.1]} 17... Kc7 {[%clk 0:02:13.8]} 18.
Qf7+ {[%clk 0:02:42.9]} 18... Bd7 {[%clk 0:02:12.4]} 19. Qxg8 {[%clk 0:02:42.5]}
19... Qb6 {[%clk 0:02:11.8]} 20. O-O-O {[%clk 0:02:40.7]} 20... Qa5 {[%clk
0:02:07.4]} 21. Be5+ {[%clk 0:02:39.6]} 21... Kc6 {[%clk 0:02:02.5]} 22. Kb1
{[%clk 0:02:38]} 1-0

[Event "*** Titled Tuesday Blitz"]
[Site "Chess.com"]
[Date "2020.05.19"]
[Round "3"]
[White "pirulillo"]
[Black "sommerpower"]
[Result "0-1"]
[WhiteElo "2235"]
[BlackElo "2455"]
[TimeControl "180+1"]
[EndTime "12:24:00 PDT"]
[Termination "sommerpower won by resignation"]

1. e4 {[%clk 0:03:00]} 1... c5 {[%clk 0:02:59.4]} 2. Nf3 {[%clk 0:02:54.2]} 2...
e6 {[%clk 0:02:58.9]} 3. d3 {[%clk 0:02:53.5]} 3... d5 {[%clk 0:02:58.1]} 4.
Nbd2 {[%clk 0:02:11.2]} 4... Nc6 {[%clk 0:02:57.1]} 5. g3 {[%clk 0:02:10.7]}
5... Nf6 {[%clk 0:02:56.3]} 6. Bg2 {[%clk 0:02:05.3]} 6... g6 {[%clk 0:02:55.7]}
7. O-O {[%clk 0:02:06.2]} 7... Bg7 {[%clk 0:02:55]} 8. Re1 {[%clk 0:02:07.1]}
8... O-O {[%clk 0:02:54.4]} 9. Qe2 {[%clk 0:02:02.4]} 9... b5 {[%clk 0:02:51.7]}
10. e5 {[%clk 0:01:38.3]} 10... Ng4 {[%clk 0:02:40.4]} 11. Nf1 {[%clk
0:01:39.2]} 11... Ngxe5 {[%clk 0:02:38.4]} 12. Bf4 {[%clk 0:01:40.1]} 12...
Nxf3+ {[%clk 0:02:36.2]} 13. Bxf3 {[%clk 0:01:34.7]} 13... Nd4 {[%clk
0:02:35.1]} 0-1

[Event "*** Titled Tuesday Blitz"]
[Site "Chess.com"]
[Date "2020.05.19"]
[Round "3"]
[White "dougie47"]
[Black "MusicCityMaster"]
[Result "1-0"]
[WhiteElo "2163"]
[BlackElo "2324"]
[TimeControl "180+1"]
[EndTime "12:24:29 PDT"]
[Termination "dougie47 won by resignation"]

1. Nf3 {[%clk 0:03:00.9]} 1... Nf6 {[%clk 0:02:59.4]} 2. c4 {[%clk 0:02:43.5]}
2... c5 {[%clk 0:02:59.2]} 3. Nc3 {[%clk 0:02:39.8]} 3... Nc6 {[%clk 0:02:58.7]}
4. e3 {[%clk 0:02:38.2]} 4... g6 {[%clk 0:02:53.8]} 5. d4 {[%clk 0:02:38.1]}
5... cxd4 {[%clk 0:02:54]} 6. exd4 {[%clk 0:02:39]} 6... d5 {[%clk 0:02:54.6]}
7. cxd5 {[%clk 0:02:38.8]} 7... Nxd5 {[%clk 0:02:54.7]} 8. Qb3 {[%clk
0:02:38.8]} 8... Nxc3 {[%clk 0:02:35.5]} 9. Bc4 {[%clk 0:02:38.2]} 9... e6
{[%clk 0:02:35.8]} 10. Qxc3 {[%clk 0:02:25.6]} 10... Bg7 {[%clk 0:02:35.3]} 11.
Bg5 {[%clk 0:02:24.9]} 1-0

[Event "*** Titled Tuesday Blitz"]
[Site "Chess.com"]
[Date "2020.05.19"]
[Round "3"]
[White "Andreikka"]
[Black "mortngabriel"]
[Result "1-0"]
[WhiteElo "2959"]
[BlackElo "2460"]
[TimeControl "180+1"]
[EndTime "12:25:35 PDT"]
[Termination "Andreikka won by resignation"]

1. c4 {[%clk 0:03:00.9]} 1... Nf6 {[%clk 0:02:57.9]} 2. Nc3 {[%clk 0:03:00.6]}
2... e6 {[%clk 0:02:58.1]} 3. e4 {[%clk 0:03:00.2]} 3... d5 {[%clk 0:02:58.3]}
4. cxd5 {[%clk 0:02:59.1]} 4... exd5 {[%clk 0:02:58.5]} 5. e5 {[%clk 0:02:59.8]}
5... d4 {[%clk 0:02:58.7]} 6. exf6 {[%clk 0:02:55.9]} 6... dxc3 {[%clk
0:02:58.7]} 7. dxc3 {[%clk 0:02:52.5]} 7... Qxf6 {[%clk 0:02:56]} 8. Nf3 {[%clk
0:02:51.3]} 8... Bg4 {[%clk 0:02:55]} 9. Be2 {[%clk 0:02:13.6]} 9... h6 {[%clk
0:02:47.7]} 10. Qa4+ {[%clk 0:02:11.1]} 10... Bd7 {[%clk 0:02:46.8]} 11. Qe4+
{[%clk 0:02:11.6]} 11... Qe6 {[%clk 0:02:34.9]} 12. Qxb7 {[%clk 0:02:08.7]}
12... Bc6 {[%clk 0:02:35.3]} 13. Qb3 {[%clk 0:01:45]} 13... Bd5 {[%clk
0:02:18.7]} 14. Qc2 {[%clk 0:01:41]} 14... Bxf3 {[%clk 0:02:15.7]} 15. gxf3
{[%clk 0:01:40.4]} 15... f5 {[%clk 0:01:50.4]} 16. Qb3 {[%clk 0:01:36.7]} 16...
Kf7 {[%clk 0:01:28.7]} 17. Be3 {[%clk 0:01:25.8]} 17... Nc6 {[%clk 0:01:23.8]}
18. Bc4 {[%clk 0:01:22.6]} 1-0

[Event "*** Titled Tuesday Blitz"]
[Site "Chess.com"]
[Date "2020.05.19"]
[Round "3"]
[White "Marty435"]
[Black "PavlovDanila"]
[Result "0-1"]
[WhiteElo "2419"]
[BlackElo "2667"]
[TimeControl "180+1"]
[EndTime "12:25:39 PDT"]
[Termination "PavlovDanila won by checkmate"]

1. e4 {[%clk 0:03:00.9]} 1... e6 {[%clk 0:02:59.8]} 2. d4 {[%clk 0:03:00.9]}
2... d5 {[%clk 0:03:00.7]} 3. Nc3 {[%clk 0:03:01.5]} 3... Nf6 {[%clk 0:03:00.6]}
4. e5 {[%clk 0:03:01.9]} 4... Nfd7 {[%clk 0:03:00.5]} 5. f4 {[%clk 0:03:02.6]}
5... c5 {[%clk 0:03:00.9]} 6. Nf3 {[%clk 0:03:03.3]} 6... Nc6 {[%clk 0:03:01.5]}
7. Be3 {[%clk 0:03:03.6]} 7... cxd4 {[%clk 0:03:02.4]} 8. Nxd4 {[%clk
0:03:04.2]} 8... Bc5 {[%clk 0:03:03]} 9. Qd2 {[%clk 0:03:04.8]} 9... O-O {[%clk
0:03:02.7]} 10. O-O-O {[%clk 0:03:04.9]} 10... a6 {[%clk 0:03:03.3]} 11. h4
{[%clk 0:02:58.4]} 11... Nxd4 {[%clk 0:03:03]} 12. Bxd4 {[%clk 0:02:58.7]} 12...
b5 {[%clk 0:03:03.9]} 13. h5 {[%clk 0:02:53.5]} 13... Bb7 {[%clk 0:03:02.6]} 14.
Kb1 {[%clk 0:02:33.3]} 14... Rc8 {[%clk 0:02:59.7]} 15. Bxc5 {[%clk 0:02:14.1]}
15... Nxc5 {[%clk 0:02:58.6]} 16. Bd3 {[%clk 0:02:14.8]} 16... f6 {[%clk
0:02:48.2]} 17. h6 {[%clk 0:02:00.5]} 17... g6 {[%clk 0:02:46.2]} 18. exf6
{[%clk 0:01:54.8]} 18... Qxf6 {[%clk 0:02:45.3]} 19. g3 {[%clk 0:01:55.3]} 19...
d4 {[%clk 0:02:36.6]} 20. Ne2 {[%clk 0:01:50]} 20... Bxh1 {[%clk 0:02:35.8]} 21.
Rxh1 {[%clk 0:01:50.1]} 21... Nxd3 {[%clk 0:02:35.3]} 22. Qxd3 {[%clk
0:01:49.5]} 22... Qf5 {[%clk 0:02:35.4]} 23. Nxd4 {[%clk 0:01:47.8]} 23... Qxd3
{[%clk 0:02:34.6]} 24. cxd3 {[%clk 0:01:48.7]} 24... Rfd8 {[%clk 0:02:32.1]} 25.
Nxe6 {[%clk 0:01:48.8]} 25... Rxd3 {[%clk 0:02:32.1]} 26. Rg1 {[%clk 0:01:42.6]}
26... Rc6 {[%clk 0:02:20.4]} 27. Ng5 {[%clk 0:01:36.2]} 27... Rcd6 {[%clk
0:02:19.4]} 28. Kc2 {[%clk 0:01:34.1]} 28... Rd2+ {[%clk 0:02:18.3]} 29. Kc1
{[%clk 0:01:34.5]} 29... R2d3 {[%clk 0:01:56.8]} 30. Re1 {[%clk 0:01:31.8]}
30... Rd8 {[%clk 0:01:56.7]} 31. Re7 {[%clk 0:01:28.1]} 31... Rc8+ {[%clk
0:01:55.4]} 32. Kb1 {[%clk 0:01:18.6]} 32... Rd1# {[%clk 0:01:53.5]} 0-1

[Event "*** Titled Tuesday Blitz"]
[Site "Chess.com"]
[Date "2020.05.19"]
[Round "3"]
[White "Gvetadze"]
[Black "BeanScreen"]
[Result "0-1"]
[WhiteElo "2404"]
[BlackElo "2617"]
[TimeControl "180+1"]
[EndTime "12:25:43 PDT"]
[Termination "BeanScreen won by resignation"]

1. e4 {[%clk 0:03:00.9]} 1... e5 {[%clk 0:03:00]} 2. Nf3 {[%clk 0:03:00.2]} 2...
Nc6 {[%clk 0:03:00.2]} 3. Bb5 {[%clk 0:02:59.7]} 3... a6 {[%clk 0:03:00.5]} 4.
Ba4 {[%clk 0:02:59.2]} 4... d6 {[%clk 0:03:00.7]} 5. c3 {[%clk 0:02:57.7]} 5...
Nf6 {[%clk 0:03:00.9]} 6. d3 {[%clk 0:02:55]} 6... Be7 {[%clk 0:03:00.9]} 7. O-O
{[%clk 0:02:54.4]} 7... O-O {[%clk 0:03:01.1]} 8. Nbd2 {[%clk 0:02:54.5]} 8...
b5 {[%clk 0:03:01.1]} 9. Bc2 {[%clk 0:02:54.1]} 9... Bb7 {[%clk 0:03:01.3]} 10.
Re1 {[%clk 0:02:53.7]} 10... Re8 {[%clk 0:03:01.6]} 11. Nf1 {[%clk 0:02:53.5]}
11... Bf8 {[%clk 0:03:01.8]} 12. Ng3 {[%clk 0:02:52.6]} 12... Ne7 {[%clk
0:03:01.9]} 13. Bg5 {[%clk 0:02:51.1]} 13... Ng6 {[%clk 0:03:02]} 14. Nf5 {[%clk
0:02:50.8]} 14... h6 {[%clk 0:02:57]} 15. Be3 {[%clk 0:02:48]} 15... d5 {[%clk
0:02:56.9]} 16. Ng3 {[%clk 0:02:41]} 16... c5 {[%clk 0:02:54.2]} 17. a4 {[%clk
0:02:34.5]} 17... Rc8 {[%clk 0:02:52.4]} 18. axb5 {[%clk 0:02:33.9]} 18... axb5
{[%clk 0:02:53.3]} 19. exd5 {[%clk 0:02:29.9]} 19... Nxd5 {[%clk 0:02:53]} 20.
Bd2 {[%clk 0:02:29.5]} 20... Ndf4 {[%clk 0:02:52.6]} 21. Be3 {[%clk 0:02:23.8]}
21... Nxg2 {[%clk 0:02:52.5]} 22. Ne4 {[%clk 0:02:18.6]} 22... N2f4 {[%clk
0:02:50.3]} 23. Kh1 {[%clk 0:02:15.3]} 23... f5 {[%clk 0:02:45.8]} 24. Ned2
{[%clk 0:02:09.6]} 24... Nxd3 {[%clk 0:02:40.7]} 25. Rg1 {[%clk 0:02:05.6]}
25... Ngf4 {[%clk 0:02:34]} 26. Rg3 {[%clk 0:01:52.3]} 26... e4 {[%clk
0:02:19.2]} 27. Ne1 {[%clk 0:01:48.8]} 27... Nxf2+ {[%clk 0:02:18.9]} 28. Bxf2
{[%clk 0:01:47.1]} 28... e3+ {[%clk 0:02:19.4]} 29. Kg1 {[%clk 0:01:47.1]} 29...
exf2+ {[%clk 0:02:19.3]} 30. Kxf2 {[%clk 0:01:47.2]} 30... c4 {[%clk 0:02:18]}
31. Ndf3 {[%clk 0:01:45.3]} 31... Bc5+ {[%clk 0:02:17.5]} 32. Nd4 {[%clk
0:01:45.2]} 32... Qh4 {[%clk 0:02:15.3]} 33. Kg1 {[%clk 0:01:17.9]} 33... Ne2+
{[%clk 0:02:14]} 0-1

[Event "*** Titled Tuesday Blitz"]
[Site "Chess.com"]
[Date "2020.05.19"]
[Round "3"]
[White "Nikolaj_6"]
[Black "SubrotaBiswas"]
[Result "1-0"]
[WhiteElo "2578"]
[BlackElo "2378"]
[TimeControl "180+1"]
[EndTime "12:25:44 PDT"]
[Termination "Nikolaj_6 won by resignation"]

1. e4 {[%clk 0:03:00.9]} 1... e6 {[%clk 0:02:59.8]} 2. d4 {[%clk 0:03:00.6]}
2... d5 {[%clk 0:03:00.7]} 3. Nc3 {[%clk 0:03:00.8]} 3... Nf6 {[%clk 0:03:00.4]}
4. Bg5 {[%clk 0:02:59.7]} 4... Bb4 {[%clk 0:02:59.9]} 5. e5 {[%clk 0:02:59.3]}
5... h6 {[%clk 0:02:59.9]} 6. Bd2 {[%clk 0:02:59.3]} 6... Bxc3 {[%clk
0:02:59.4]} 7. bxc3 {[%clk 0:02:59.8]} 7... Ne4 {[%clk 0:03:00.3]} 8. Qg4 {[%clk
0:02:59.7]} 8... g6 {[%clk 0:02:55.4]} 9. Bd3 {[%clk 0:02:59]} 9... Nxd2 {[%clk
0:02:55]} 10. Kxd2 {[%clk 0:02:59.6]} 10... c5 {[%clk 0:02:55.9]} 11. Rb1 {[%clk
0:02:57.4]} 11... c4 {[%clk 0:02:54.7]} 12. Be2 {[%clk 0:02:55.9]} 12... Nc6
{[%clk 0:02:49.7]} 13. h4 {[%clk 0:02:51.4]} 13... h5 {[%clk 0:02:48.9]} 14. Qf4
{[%clk 0:02:50.8]} 14... Rb8 {[%clk 0:02:46.8]} 15. Rh3 {[%clk 0:02:48.1]} 15...
b5 {[%clk 0:02:45.2]} 16. a3 {[%clk 0:02:37.4]} 16... a5 {[%clk 0:02:44.6]} 17.
Nf3 {[%clk 0:02:31]} 17... Qe7 {[%clk 0:02:44.4]} 18. Ng5 {[%clk 0:02:25.8]}
18... Rf8 {[%clk 0:02:41.7]} 19. Nh7 {[%clk 0:02:23.7]} 19... Rh8 {[%clk
0:02:41.6]} 20. Nf6+ {[%clk 0:02:23.1]} 20... Kd8 {[%clk 0:02:42.2]} 21. Ra1
{[%clk 0:02:10.1]} 21... Kc7 {[%clk 0:02:41.3]} 22. f3 {[%clk 0:01:58.8]} 22...
b4 {[%clk 0:02:40.3]} 23. axb4 {[%clk 0:01:57.2]} 23... axb4 {[%clk 0:02:41.2]}
24. Qe3 {[%clk 0:01:53.8]} 24... bxc3+ {[%clk 0:02:38.7]} 25. Qxc3 {[%clk
0:01:53.1]} 25... Qb4 {[%clk 0:02:39.3]} 26. Qxb4 {[%clk 0:01:51.4]} 26... Rxb4
{[%clk 0:02:40.2]} 27. Kc3 {[%clk 0:01:44.2]} 27... Bb7 {[%clk 0:02:39.3]} 28.
g4 {[%clk 0:01:42.5]} 28... hxg4 {[%clk 0:02:37.4]} 29. fxg4 {[%clk 0:01:42.4]}
29... Rb6 {[%clk 0:02:36.2]} 30. h5 {[%clk 0:01:41.8]} 30... Na7 {[%clk
0:02:34.7]} 31. Rxa7 {[%clk 0:01:38]} 31... gxh5 {[%clk 0:02:29.7]} 32. gxh5
{[%clk 0:01:36.8]} 32... Rb1 {[%clk 0:02:29.4]} 33. h6 {[%clk 0:01:35.5]} 33...
Kb6 {[%clk 0:02:29.5]} 34. Ra4 {[%clk 0:01:33.3]} 34... Bc6 {[%clk 0:02:26]} 35.
Rb4+ {[%clk 0:01:32.4]} 35... Rxb4 {[%clk 0:02:26.1]} 36. Kxb4 {[%clk 0:01:33]}
36... Ra8 {[%clk 0:02:25.8]} 37. Ra3 {[%clk 0:01:24.6]} 37... Rh8 {[%clk
0:02:24.7]} 38. h7 {[%clk 0:01:24.7]} 38... Rb8 {[%clk 0:02:23.7]} 39. Ng8
{[%clk 0:01:21.1]} 1-0